bitfinex-derivatives/quotes_SOLF0:USTF0_20241222
["timestamp","ask_amount","ask_price","bid_price","bid_amount"]
[1734852213424,5.5152,182.91,182.85,2.7358]
[1734852214129,5.5152,182.91,182.86,2.7358]
[1734852214429,2.7352,182.91,182.86,2.7358]
[1734852216626,2.7352,182.9,182.85,2.7359]
[1734852222833,9.05053886,182.91,182.83,2.78]
[1734852223227,9.05053886,182.94,182.83,2.78]
[1734852224035,2.7347,182.93,182.83,2.78]
[1734852224630,2.7347,182.93,182.88,2.7354]
[1734852227737,9.05053886,182.94,182.83,2.78]
[1734852228135,2.78,182.95,182.83,2.78]
[1734852228136,9.05053886,182.91,182.83,2.78]
[1734852228730,2.7353,182.9,182.85,2.7358]
[1734852232243,2.7353,182.89,182.85,2.7358]
[1734852233743,2.78,182.9,182.82,2.78]
[1734852233944,2.7355,182.88,182.84,2.7361]
[1734852237246,2.7355,182.88,182.85,2.7359]
[1734852238047,9.05053886,182.91,182.81,2.78]
[1734852238447,11.78573886,182.91,182.81,2.78]
[1734852238949,5.5148,182.93,182.82,9.05053886]
[1734852239150,5.5148,182.93,182.89,2.7352]
[1734852242455,5.5148,182.93,182.86,3.4041]
[1734852242456,2.7352,182.91,182.87,2.7356]
[1734852244464,2.78,182.93,182.87,2.7356]
[1734852244665,9.05053886,182.91,182.82,2.78]
[1734852245060,9.05053886,182.88,182.8,3.2276]
[1734852245264,2.78,182.87,182.81,59.38426517]
[1734852245958,2.78,182.87,182.81,62.12066517]
[1734852246365,2.78,182.87,182.81,2.7364]
[1734852247561,9.05053886,182.91,182.8,3.2276]
[1734852247755,2.78,182.9,182.8,3.2276]
[1734852247958,2.7355,182.89,182.8,3.2276]
[1734852248159,2.78,182.9,182.83,2.7361]
[1734852248558,2.78,182.9,182.8,3.2276]
[1734852248757,2.7355,182.88,182.84,2.7361]
[1734852263172,2.78,182.9,182.84,2.7361]
[1734852263173,2.7355,182.89,182.84,2.7361]
[1734852263373,2.78,182.9,182.82,2.7363]
[1734852263774,2.7357,182.87,182.8,3.2276]
[1734852264075,2.78,182.9,182.8,3.2276]
[1734852264472,2.78,182.9,182.83,2.7362]
[1734852264679,9.05053886,182.88,182.8,3.2276]
[1734852266481,2.736,182.85,182.81,2.7364]
[1734852270980,2.7357,182.87,182.8,3.2276]
[1734852271582,2.7357,182.87,182.83,2.7361]
[1734852272577,9.05053886,182.91,182.8,3.2276]
[1734852272783,2.78,182.9,182.81,2.78]
[1734852273085,9.05053886,182.91,182.81,2.78]
[1734852273384,2.7353,182.9,182.81,2.78]
[1734852274582,11.83053886,182.91,182.81,2.78]
[1734852274786,2.7354,182.89,182.81,2.78]
[1734852276582,2.7354,182.89,182.85,2.7359]
[1734852278276,2.7354,182.89,182.86,2.7358]
[1734852280287,11.83053886,182.91,182.84,2.736]
[1734852280288,2.78,182.91,182.84,2.736]
[1734852280485,2.78,182.91,182.82,2.78]
[1734852281487,2.78,182.91,182.87,2.7355]
[1734852284783,2.78,182.91,182.81,59.38426517]
[1734852285088,9.05053886,182.84,182.81,59.38426517]
[1734852285288,2.78,182.83,182.81,59.38426517]
[1734852285488,2.7364,182.82,182.81,59.38426517]
[1734852285787,11.83053886,182.84,182.81,59.38426517]
[1734852286091,14.56663886,182.84,182.78,2.737]
[1734852286478,14.56663886,182.84,182.75,2.78]
[1734852286690,14.56663886,182.84,182.76,1.7027]
[1734852287484,14.56663886,182.84,182.79,2.7368]
[1734852290088,14.56663886,182.84,182.76,1.7027]
[1734852290089,9.05053886,182.87,182.76,1.7027]
[1734852290292,9.05053886,182.87,182.77,9.05053886]
[1734852290688,9.05053886,182.87,182.78,3.2691]
[1734852290884,9.05053886,182.87,182.79,2.78]
[1734852291592,11.78613886,182.87,182.82,2.7363]
[1734852295696,2.7355,182.88,182.84,2.736]
[1734852296791,9.05053886,182.9,182.79,2.78]
[1734852296992,9.05053886,182.9,182.8,9.05053886]
[1734852297596,9.05053886,182.9,182.86,2.7357]
[1734852298391,11.78573886,182.9,182.86,2.7357]
[1734852301295,2.7354,182.89,182.84,2.7359]
[1734852303094,2.78,182.92,182.83,2.78]
[1734852303295,2.735,182.91,182.86,2.7357]
[1734852303500,74.02694399,182.98,182.83,9.05053886]
[1734852303700,2.7343,182.97,182.92,2.7348]
[1734852304100,74.02694399,182.98,182.92,2.7348]
[1734852304300,9.05053886,182.96,182.9,2.7352]
[1734852304502,9.05053886,182.96,182.88,2.78]
[1734852304697,9.05053886,182.93,182.87,3.3811]
[1734852304897,2.7349,182.92,182.87,6.1166]
[1734852305402,2.7349,182.92,182.88,2.7355]
[1734852305803,9.05053886,182.93,182.87,3.3811]
[1734852306000,2.7346,182.94,182.9,2.7351]
[1734852306902,2.78,182.95,182.87,3.3811]
[1734852307203,11.78483886,182.96,182.91,2.7349]
[1734852308105,74.02694399,182.98,182.88,2.78]
[1734852308307,70.98853757,182.98,182.88,2.78]
[1734852308507,73.72253757,182.98,182.93,2.7346]
[1734852308805,30.0841524,183.06,182.93,2.76]
[1734852309105,30.0841524,183.06,182.98,9.05053886]
[1734852309304,7.5964886,183.08,182.99,2.76]
[1734852309701,9.05053886,183.07,182.98,9.05053886]
[1734852309896,9.05053886,183.04,182.97,2.76]
[1734852310405,9.05053886,183.04,182.96,2.76]
[1734852310606,11.78373886,183.04,182.96,2.76]
[1734852310796,2.7332,183.04,182.96,2.76]
[1734852311201,2.7332,183.04,182.98,2.734]
[1734852313106,2.733,183.05,183.0,2.7337]
[1734852313507,2.7328,183.06,183.01,2.7335]
[1734852316008,2.7333,183.03,182.95,14.45879746]
[1734852316216,17.21879746,183.08,182.97,2.7341]
[1734852316710,2.7333,183.03,182.97,2.7341]
[1734852319015,2.7333,183.03,182.96,2.76]
[1734852319219,2.7331,183.04,182.99,2.7338]
[1734852319421,2.76,183.08,182.96,2.76]
[1734852320516,2.733,183.05,182.96,2.76]
[1734852321221,2.733,183.05,182.99,2.7338]
[1734852322323,2.76,183.08,182.96,2.76]
[1734852322623,2.76,183.09,182.97,14.45879746]
[1734852322924,17.21879746,183.11,182.97,14.45879746]
[1734852323124,2.7327,183.07,183.02,2.7332]
[1734852324222,2.7325,183.09,183.03,2.7331]
[1734852324413,2.7325,183.09,183.01,2.76]
[1734852325623,2.7325,183.09,183.04,2.733]
[1734852327317,2.7325,183.08,183.04,2.733]
[1734852329229,17.21879746,183.11,182.94,5.0389]
[1734852329419,17.21879746,183.11,182.95,2.76]
[1734852329620,14.45879746,183.08,182.95,2.76]
[1734852329917,2.76,183.07,182.95,2.76]
[1734852330427,2.7332,183.03,182.99,2.7338]
[1734852330625,2.7332,183.03,182.95,2.76]
[1734852331326,2.7332,183.03,182.98,2.7339]
[1734852332228,2.7336,183.01,182.97,2.7341]
[1734852332620,2.76,183.03,182.94,5.0389]
[1734852332825,2.734,182.98,182.94,6.1756]
[1734852333023,2.734,182.98,182.94,3.441]
[1734852333325,2.734,182.98,182.92,2.76]
[1734852333923,2.734,182.98,182.93,2.7346]
[1734852334429,2.734,182.98,182.94,2.7346]
[1734852336319,2.76,183.02,182.92,2.76]
[1734852336524,17.21879746,183.02,182.89,5.1037]
[1734852336822,17.21879746,183.02,182.9,2.76]
[1734852337427,2.7343,182.97,182.91,2.7349]
[1734852338229,17.21879746,183.02,182.91,2.7349]
[1734852338430,2.7343,182.96,182.91,2.7349]
[1734852342531,2.734,182.98,182.93,2.7347]
[1734852342833,2.76,183.04,182.94,2.76]
[1734852343235,2.76,183.04,182.96,2.7342]
[1734852344529,2.7337,183.0,182.96,2.7342]
[1734852350731,2.7337,183.0,182.94,2.76]
[1734852350935,2.7337,183.0,182.95,2.7344]
[1734852351829,14.41326463,183.11,182.95,9.0390804]
[1734852352135,2.76,183.1,182.98,9.0390804]
[1734852352331,2.76,183.1,182.99,2.76]
[1734852352527,2.7329,183.06,183.01,2.7335]
[1734852353236,2.76,183.1,182.99,2.76]
[1734852353438,2.7332,183.04,182.99,5.4938]
[1734852353938,2.7335,183.02,182.99,2.76]
[1734852354341,2.7335,183.02,182.97,2.7341]
[1734852355333,2.76,183.06,182.96,5.0407]
[1734852355534,2.7331,183.04,182.97,2.76]
[1734852356435,2.76,183.06,182.96,5.0407]
[1734852356642,2.7335,183.02,182.96,7.8007]
[1734852357439,2.7335,183.02,182.97,2.734]
[1734852357738,2.76,183.06,182.97,2.734]
[1734852358235,2.76,183.06,182.92,14.45502086]
[1734852358441,2.7338,183.0,182.95,2.7343]
[1734852359839,2.7338,183.0,182.96,2.7343]
[1734852360637,2.76,183.08,182.97,2.76]
[1734852360837,2.76,183.08,182.98,3.3192]
[1734852361038,2.76,183.09,182.98,4.9489]
[1734852361236,2.7329,183.06,183.01,2.7334]
[1734852363838,2.76,183.09,182.98,4.9489]
[1734852364143,2.7326,183.08,182.98,19.40392086]
[1734852364635,2.76,183.13,183.06,2.7327]
[1734852364841,5.66948986,183.15,183.04,2.76]
[1734852365036,5.66948986,183.15,183.05,4.9976]
[1734852365234,2.90948986,183.15,183.05,4.9976]
[1734852365542,2.90948986,183.15,183.05,3.3343]
[1734852365742,2.7324,183.09,183.05,3.3343]
[1734852365947,2.90948986,183.15,183.06,2.76]
[1734852366442,2.7322,183.1,183.05,3.3343]
[1734852366844,2.90948986,183.15,183.05,3.3343]
[1734852367237,2.90948986,183.15,183.06,1.7028]
[1734852367441,2.90948986,183.15,183.07,2.76]
[1734852368138,5.64108986,183.15,183.1,2.7322]
[1734852368536,2.90948986,183.15,183.07,2.76]
[1734852368735,2.90948986,183.15,183.09,2.7323]
[1734852368938,2.90948986,183.15,183.07,17.21502086]
[1734852369841,2.90948986,183.15,183.07,2.76]
[1734852370047,5.66948986,183.15,183.07,2.76]
[1734852370844,2.90948986,183.15,183.07,2.76]
[1734852371239,2.7318,183.13,183.07,5.4925]
[1734852371844,2.7318,183.13,183.08,2.7325]
[1734852372147,5.64108986,183.15,183.07,2.76]
[1734852372447,14.45502086,183.13,182.97,14.45502086]
[1734852372749,2.76,183.12,183.0,3.2778]
[1734852373546,2.7326,183.08,183.02,2.7333]
[1734852375047,2.7326,183.08,183.0,3.2778]
[1734852375251,2.7326,183.08,183.03,2.7332]
[1734852375545,2.7323,183.1,183.0,3.2778]
[1734852375849,2.7323,183.1,183.04,2.733]
[1734852377452,2.76,183.12,183.0,3.2778]
[1734852377651,2.76,183.12,183.03,2.7332]
[1734852378453,2.7325,183.09,183.03,2.7332]
[1734852380154,2.7325,183.09,183.04,2.7331]
[1734852380956,2.7325,183.09,183.02,2.7333]
[1734852380957,2.76,183.08,183.02,2.7333]
[1734852381850,2.76,183.08,183.01,2.7335]
[1734852382158,2.76,183.08,183.0,3.2778]
[1734852383547,2.7331,183.05,183.0,6.0115]
[1734852389962,2.76,183.08,183.0,3.2778]
[1734852390966,2.7329,183.06,183.01,2.7335]
[1734852391465,2.76,183.08,183.01,2.7335]
[1734852391765,2.7328,183.06,183.01,2.7335]
[1734852393066,2.7327,183.07,183.02,2.7333]
[1734852393463,2.7328,183.06,183.02,2.7333]
[1734852394363,2.76,183.1,183.02,2.7333]
[1734852394559,9.03335877,183.12,183.02,2.76]
[1734852394765,11.79335877,183.12,183.02,2.76]
[1734852395160,2.7322,183.1,183.06,2.7328]
[1734852395971,2.7321,183.11,183.06,2.7328]
[1734852396365,2.76,183.12,183.07,2.7325]
[1734852397576,2.732,183.12,183.07,2.7325]
[1734852397878,2.76,183.13,183.03,9.03335877]
[1734852398081,5.4919,183.13,183.03,9.03335877]
[1734852398775,2.7319,183.12,183.07,2.7326]
[1734852399377,2.90948986,183.15,183.06,11.79335877]
[1734852399578,2.7316,183.14,183.09,2.7322]
[1734852399783,2.90948986,183.15,183.07,7.653]
[1734852399977,2.732,183.12,183.07,10.3856]
[1734852400176,2.90948986,183.15,183.07,10.3856]
[1734852400881,11.94284863,183.15,183.07,4.893]
[1734852401578,2.7319,183.13,183.07,4.893]
[1734852402182,2.7319,183.13,183.08,2.7324]
[1734852404176,2.90948986,183.15,183.07,4.893]
[1734852404373,2.7317,183.14,183.1,2.7322]
[1734852408289,2.7318,183.13,183.09,2.7323]
[1734852409087,2.90948986,183.15,183.07,4.893]
[1734852409284,2.7321,183.11,183.07,7.6256]
[1734852409688,2.76,183.12,183.02,2.76]
[1734852409988,11.79335877,183.12,183.01,6.026]
[1734852410187,2.7326,183.08,183.03,2.7331]
[1734852410384,11.79335877,183.12,183.03,2.7331]
[1734852410785,2.7326,183.08,183.03,2.7331]
[1734852410989,2.7326,183.08,183.04,2.7331]
[1734852413391,11.79335877,183.12,183.01,6.026]
[1734852413586,2.7323,183.1,183.05,2.7328]
[1734852413988,2.7324,183.09,183.05,2.7328]
[1734852416391,2.7322,183.1,183.06,2.7328]
[1734852424697,11.94284863,183.15,183.03,11.79335877]
[1734852424995,5.66948986,183.15,183.06,9.03335877]
[1734852425193,5.66948986,183.15,183.07,4.344]
[1734852425693,2.90948986,183.15,183.08,3.4297]
[1734852426093,2.90948986,183.15,183.1,2.7322]
[1734852426094,2.7317,183.14,183.1,2.7322]
[1734852427594,2.7313,183.16,183.09,9.03335877]
[1734852427796,2.76,183.18,183.09,9.03335877]
[1734852428293,2.7312,183.17,183.12,2.7318]
[1734852429589,2.731,183.18,183.14,2.7316]
[1734852429789,2.76,183.2,183.11,2.76]
[1734852430492,2.7312,183.17,183.13,2.7317]
[1734852430892,2.731,183.18,183.13,2.7317]
[1734852431295,2.76,183.2,183.13,2.7317]
[1734852432096,2.76,183.2,183.09,9.03335877]
[1734852432296,9.03335877,183.19,183.08,6.1897]
[1734852432698,9.03335877,183.19,183.09,2.7323]
[1734852434100,2.7317,183.14,183.09,2.7323]
[1734852436694,2.7317,183.14,183.1,2.7321]
[1734852441604,2.76,183.16,183.08,3.4297]
[1734852442502,2.7317,183.14,183.1,2.7322]
[1734852444199,30.0841524,183.26,183.13,18.06671754]
[1734852444200,7.5964886,183.25,183.13,18.06671754]
[1734852444403,7.5964886,183.25,183.2,9.03335877]
[1734852444610,7.5964886,183.25,183.23,2.7301]
[1734852444802,7.5964886,183.25,183.21,2.76]
[1734852445099,2.7294,183.3,183.21,4.501]
[1734852445697,2.7294,183.3,183.25,2.73]
[1734852446003,2.7294,183.3,183.25,5.49]
[1734852446400,2.7294,183.3,183.25,2.76]
[1734852446599,2.7295,183.28,183.21,1.741]
[1734852446803,11.79335877,183.34,183.22,2.76]
[1734852447101,0.97856244,183.33,183.22,5.4903]
[1734852447296,2.7295,183.29,183.22,5.4903]
[1734852447494,2.7295,183.29,183.22,2.76]
[1734852447904,2.7295,183.29,183.24,2.7301]
[1734852448106,2.76,183.33,183.24,2.7301]
[1734852448408,2.7292,183.3,183.24,2.7301]
[1734852448701,2.7292,183.3,183.25,2.7299]
[1734852451599,2.7295,183.29,183.23,2.7302]
[1734852452597,2.7298,183.26,183.21,3.4652]
[1734852452800,2.7298,183.26,183.21,1.7242]
[1734852453603,2.7298,183.26,183.21,4.4548]
[1734852455103,2.76,183.29,183.2,11.79335877]
[1734852455402,9.03335877,183.28,183.17,11.79335877]
[1734852455604,10.77885877,183.28,183.16,1.6582]
[1734852455799,9.03335877,183.22,183.11,2.76]
[1734852456003,2.76,183.21,183.1,11.79335877]
[1734852457407,2.731,183.18,183.13,2.7317]
[1734852457604,2.731,183.18,183.1,11.79335877]
[1734852458204,2.731,183.18,183.12,2.7319]
[1734852459499,2.7312,183.17,183.12,2.7319]
[1734852465212,2.76,183.28,183.16,9.03335877]
[1734852465507,2.76,183.28,183.17,1.6396]
[1734852466516,2.7302,183.24,183.19,2.7308]
[1734852467014,2.76,183.28,183.17,1.6396]
[1734852467215,2.7299,183.26,183.17,10.67295877]
[1734852468518,5.4896,183.28,183.17,10.67295877]
[1734852468721,2.7296,183.28,183.17,10.67295877]
[1734852469318,2.7296,183.28,183.22,2.7303]
[1734852470814,2.7292,183.3,183.25,2.7299]
[1734852471216,2.7292,183.3,183.22,1.5877]
[1734852471414,2.7292,183.3,183.26,2.7298]
[1734852473119,2.7294,183.29,183.25,2.7299]
[1734852473316,2.7294,183.29,183.22,1.5877]
[1734852474523,2.7294,183.29,183.24,2.7301]
[1734852476119,2.7294,183.29,183.22,1.5877]
[1734852476416,2.7294,183.29,183.25,2.73]
[1734852476623,2.7294,183.29,183.22,1.5877]
[1734852477021,2.7294,183.29,183.23,2.7301]
[1734852477726,2.7296,183.28,183.23,2.7301]
[1734852478823,2.7298,183.26,183.21,5.4905]
[1734852479325,2.7298,183.26,183.21,2.7305]
[1734852481621,2.74,183.27,183.19,2.74]
[1734852481828,5.4698,183.27,183.21,2.7304]
[1734852482227,2.7298,183.26,183.21,2.7304]
[1734852482828,2.74,183.27,183.19,2.74]
[1734852483029,2.74,183.27,183.17,1.6396]
[1734852484029,2.74,183.27,183.17,4.3796]
[1734852484430,2.7302,183.24,183.2,2.7307]
[1734852486229,2.74,183.27,183.17,4.3796]
[1734852486427,2.7303,183.23,183.18,2.7309]
[1734852486932,2.7303,183.23,183.19,2.7308]
[1734852491242,2.7301,183.25,183.2,2.7306]
[1734852493537,2.7301,183.25,183.21,2.7305]
[1734852494043,2.7301,183.25,183.17,4.3796]
[1734852494238,2.7301,183.25,183.2,2.7307]
[1734852495038,2.73,183.25,183.2,2.7307]
[1734852495239,2.74,183.27,183.2,2.7307]
[1734852495744,2.7301,183.25,183.2,2.7307]
[1734852497943,2.74,183.27,183.17,4.3796]
[1734852498144,2.74,183.27,183.19,2.7309]
[1734852498145,2.7302,183.24,183.19,2.7309]
[1734852498744,2.74,183.27,183.19,2.7309]
[1734852499449,2.74,183.27,183.2,2.7307]
[1734852500647,2.7301,183.24,183.2,2.7307]
[1734852502944,2.74,183.27,183.17,13.41295877]
[1734852503151,2.73,183.25,183.21,2.7305]
[1734852504947,2.74,183.27,183.17,1.6396]
[1734852505156,11.77335877,183.27,183.17,1.6396]
[1734852505349,9.03335877,183.27,183.17,1.6396]
[1734852505550,2.74,183.26,183.17,1.6396]
[1734852506553,2.7309,183.19,183.17,1.6396]
[1734852508155,5.4706,183.21,183.17,1.6396]
[1734852509552,2.7306,183.21,183.17,4.3707]
[1734852511856,5.4704,183.22,183.17,4.3707]
[1734852512257,2.7304,183.22,183.18,2.731]
[1734852512458,5.4704,183.23,183.18,2.731]
[1734852512759,2.74,183.23,183.17,1.6396]
[1734852513059,2.74,183.23,183.17,10.67295877]
[1734852513356,10.74355877,183.29,183.17,10.67295877]
[1734852513357,2.74,183.26,183.17,10.67295877]
[1734852513557,2.7301,183.24,183.17,10.67295877]
[1734852513961,2.7301,183.24,183.2,2.7307]
[1734852515053,2.74,183.26,183.2,2.7307]
[1734852515054,2.73,183.25,183.2,2.7307]
[1734852519161,2.7302,183.24,183.2,2.7307]
[1734852529256,2.74,183.27,183.18,3.2303]
[1734852529464,2.74,183.27,183.18,5.9612]
[1734852529861,9.03335877,183.26,183.18,3.2303]
[1734852530468,9.03335877,183.26,183.17,1.6396]
[1734852531165,2.7308,183.2,183.17,1.6396]
[1734852532865,2.74,183.22,183.17,1.6396]
[1734852533064,2.74,183.22,183.18,2.7309]
[1734852533268,2.7303,183.23,183.18,2.7309]
[1734852533465,2.74,183.25,183.18,2.7309]
[1734852533667,2.7305,183.22,183.18,2.7309]
[1734852555689,1.7102,183.29,183.2,2.7306]
[1734852555889,2.74,183.28,183.17,13.41295877]
[1734852556187,2.7301,183.25,183.2,2.7307]
[1734852556592,1.7102,183.29,183.17,13.41295877]
[1734852556785,2.74,183.28,183.17,13.41295877]
[1734852558094,2.74,183.28,183.23,2.7301]
[1734852558095,2.7297,183.27,183.23,2.7301]
[1734852559095,2.7301,183.25,183.21,2.7304]
[1734852559296,2.74,183.26,183.17,13.41295877]
[1734852559691,2.7304,183.23,183.18,2.7309]
[1734852560190,2.7304,183.23,183.17,4.3796]
[1734852560395,2.7304,183.23,183.19,2.7308]
[1734852562194,2.74,183.26,183.17,4.3796]
[1734852562394,2.7305,183.22,183.18,2.731]
[1734852564097,2.74,183.26,183.17,4.3796]
[1734852564395,2.7303,183.23,183.19,2.7308]
[1734852564595,2.74,183.26,183.17,13.41295877]
[1734852565493,2.7301,183.25,183.21,2.7305]
[1734852565891,2.7301,183.25,183.17,13.41295877]
[1734852566096,5.4699,183.26,183.22,2.7304]
[1734852567100,5.4699,183.26,183.17,4.3796]
[1734852567401,2.74,183.26,183.17,4.3796]
[1734852568500,2.7302,183.24,183.19,2.7308]
[1734852569203,9.03335877,183.25,183.14,59.38426517]
[1734852569396,10.62045877,183.25,183.14,59.38426517]
[1734852569597,2.7305,183.22,183.15,2.7314]
[1734852569903,10.62045877,183.25,183.15,2.7314]
[1734852569904,2.74,183.21,183.15,2.7314]
[1734852570096,2.7308,183.2,183.14,59.38426517]
[1734852570299,2.7308,183.2,183.16,2.7313]
[1734852571204,2.7304,183.22,183.18,2.731]
[1734852572205,2.7303,183.23,183.18,2.731]
[1734852572400,9.03335877,183.28,183.15,2.74]
[1734852572595,2.7301,183.25,183.15,2.74]
[1734852573000,2.7301,183.25,183.2,2.7306]
[1734852573805,2.7301,183.24,183.2,2.7306]
[1734852574405,2.73,183.25,183.21,2.7305]
[1734852577106,2.74,183.27,183.17,9.03335877]
[1734852577311,5.4697,183.27,183.22,2.7303]
[1734852578607,2.7297,183.27,183.22,2.7303]
[1734852579112,2.7295,183.28,183.2,1.6518]
[1734852579313,2.7295,183.28,183.21,1.6224]
[1734852579912,2.7293,183.3,183.21,1.6224]
[1734852580109,2.74,183.31,183.21,1.6224]
[1734852580514,2.7291,183.32,183.23,9.03335877]
[1734852580711,7.5964886,183.36,183.26,9.03335877]
[1734852580913,10.3364886,183.36,183.27,3.4068]
[1734852581107,2.7285,183.35,183.3,2.7291]
[1734852581411,7.5964886,183.36,183.28,2.74]
[1734852581615,7.5964886,183.36,183.29,1.591]
[1734852581813,7.5964886,183.36,183.31,2.7291]
[1734852582011,8.43893266,183.37,183.31,2.7291]
[1734852582208,2.97073266,183.37,183.29,1.591]
[1734852582515,16.62984737,183.42,183.29,10.62435877]
[1734852582717,2.74,183.41,183.29,10.62435877]
[1734852582909,16.62984737,183.42,183.29,10.62435877]
[1734852582910,9.03335877,183.42,183.29,10.62435877]
[1734852583110,2.7277,183.4,183.35,2.7283]
[1734852583314,11.77335877,183.42,183.32,2.74]
[1734852584111,2.74,183.42,183.32,2.74]
[1734852584312,5.4674,183.42,183.36,2.7283]
[1734852585207,30.0841524,183.49,183.41,2.7275]
[1734852586017,30.0841524,183.49,183.4,2.7277]
[1734852586018,2.7269,183.46,183.4,2.7277]
[1734852586221,2.7269,183.46,183.38,9.03335877]
[1734852586415,9.03335877,183.49,183.38,9.03335877]
[1734852586619,2.7272,183.44,183.37,7.7634]
[1734852588119,2.74,183.46,183.37,5.0354]
[1734852588120,11.77335877,183.46,183.37,5.0354]
[1734852589016,2.7274,183.43,183.37,5.0354]
[1734852593024,2.7274,183.43,183.37,7.7636]
[1734852593223,11.77335877,183.46,183.37,7.7636]
[1734852593429,2.7275,183.42,183.37,7.7636]
[1734852593719,11.77335877,183.46,183.38,2.728]
[1734852593925,11.77335877,183.46,183.37,5.0354]
[1734852594119,2.74,183.46,183.37,5.0354]
[1734852595425,2.7274,183.43,183.37,7.7634]
[1734852597923,2.74,183.46,183.37,7.7634]
[1734852598120,2.7275,183.42,183.37,7.7634]
[1734852599124,2.7275,183.42,183.38,2.728]
[1734852601132,2.74,183.46,183.38,2.728]
[1734852601331,2.7273,183.43,183.38,2.728]
[1734852602530,5.4671,183.45,183.37,5.0354]
[1734852602835,2.74,183.45,183.37,5.0354]
[1734852603037,2.74,183.45,183.37,14.06875877]
[1734852603239,11.77335877,183.48,183.37,14.06875877]
[1734852603824,2.7267,183.47,183.37,14.06875877]
[1734852604026,7.5964886,183.62,183.38,2.74]
[1734852604230,2.7264,183.49,183.42,2.7274]
[1734852604426,2.7264,183.49,183.43,2.74]
[1734852605335,2.7263,183.5,183.44,2.727]
[1734852605531,0.0781,183.59,183.43,2.74]
[1734852605833,9.03335877,183.56,183.44,5.0424]
[1734852606233,11.77335877,183.56,183.48,2.7265]
[1734852607037,11.77335877,183.56,183.47,2.74]
[1734852607038,2.7256,183.55,183.47,2.74]
[1734852607236,2.7256,183.55,183.49,2.7264]
[1734852608036,2.7258,183.54,183.48,2.7265]
[1734852608340,2.7258,183.54,183.47,2.74]
[1734852609039,11.77335877,183.54,183.44,7.7824]
[1734852610030,2.7262,183.51,183.46,2.7268]
[1734852611842,2.7262,183.5,183.46,2.7268]
[1734852612040,11.77335877,183.54,183.44,7.7824]
[1734852612543,2.7261,183.51,183.44,10.5095]
[1734852612743,11.77335877,183.54,183.44,10.5095]
[1734852613444,2.7263,183.5,183.44,10.5095]
[1734852613641,2.7263,183.5,183.45,2.7269]
[1734852614546,2.7263,183.5,183.46,2.7268]
[1734852615945,2.7261,183.51,183.46,2.7268]
[1734852617845,11.77335877,183.54,183.48,2.7265]
[1734852617846,2.726,183.52,183.48,2.7265]
[1734852619248,2.7261,183.51,183.46,2.7267]
[1734852619449,9.03335877,183.6,183.44,7.7824]
[1734852619450,2.74,183.53,183.44,7.7824]
[1734852619948,2.7264,183.5,183.45,2.7269]
[1734852621950,2.7264,183.5,183.46,2.7268]
[1734852625758,2.7264,183.5,183.44,7.7824]
[1734852625952,2.7264,183.5,183.45,2.727]
[1734852626756,2.74,183.53,183.45,2.727]
[1734852626964,2.7267,183.48,183.44,5.0424]
[1734852628558,2.7267,183.48,183.44,7.7695]
[1734852628763,11.75335877,183.53,183.44,5.0424]
[1734852629062,2.7267,183.47,183.44,1.6387]
[1734852632067,2.72,183.52,183.44,1.6387]
[1734852632268,2.7268,183.46,183.44,1.6387]
[1734852632568,14.42633756,183.59,183.37,1.7346]
[1734852632569,2.72,183.48,183.37,1.7346]